bitfinex/quotes_SOLUSD_20241008
["timestamp","ask_amount","ask_price","bid_price","bid_amount"]
[1728397042167,23.776884,143.47,143.39,32.671]
[1728397042334,65.619464,143.53,143.38,0.8597165]
[1728397042335,20.0,143.44,143.38,0.8597165]
[1728397042534,6.9739,143.39,143.38,0.8597165]
[1728397042740,26.9739,143.39,143.38,0.8597165]
[1728397042956,50.750784,143.39,143.38,0.8597165]
[1728397043142,50.750784,143.39,143.38,0.5589165]
[1728397043451,6.977,143.33,143.27,17.4495]
[1728397043656,43.776884,143.39,143.24,6.1172]
[1728397043833,6.9783,143.31,143.24,6.9812]
[1728397044044,43.776884,143.35,143.24,6.9812]
[1728397044242,43.776884,143.35,143.23,18.3130165]
[1728397044243,6.7549,143.32,143.23,0.8597165]
[1728397044440,43.776884,143.35,143.14,35.93761603]
[1728397044441,23.776884,143.28,143.14,35.93761603]
[1728397044741,2.0,143.35,143.08,35.93761603]
[1728397044742,39.84857577,143.27,143.18,36.089855]
[1728397044947,32.86847577,143.27,143.18,36.089855]
[1728397045263,7.23128,143.26,143.19,6.9836]
[1728397045443,7.23128,143.26,143.17,24.4449]
[1728397045444,0.25098,143.24,143.17,24.4449]
[1728397045643,0.25098,143.24,143.15,36.089855]
[1728397045644,20.25098,143.24,143.15,43.075155]
[1728397045957,0.25098,143.24,143.16,1.39684502]
[1728397046159,0.25098,143.24,143.04,17.828086]
[1728397046365,20.25098,143.22,143.11,17.4678]
[1728397046661,0.12549,143.17,143.09,59.57428525]
[1728397046961,0.12549,143.19,143.13,17.4661]
[1728397047147,12.77128304,143.2,143.13,18.86327433]
[1728397047467,12.64579304,143.2,143.13,18.86314229]
[1728397047638,12.64579304,143.2,143.16,6.985]
[1728397048151,6.9838,143.19,143.13,17.4661]
[1728397048334,6.9838,143.19,143.09,77.04568525]
[1728397048335,0.12549,143.17,143.09,77.04568525]
[1728397048551,0.12549,143.19,143.13,6.9865]
[1728397048768,6.9838,143.19,143.12,76.18146875]
[1728397048952,0.12549,143.19,143.12,76.18146875]
[1728397049157,12.64579304,143.2,143.12,76.18146875]
[1728397049355,12.64579304,143.2,143.15,76.17776875]
[1728397049650,70.0,143.34,143.18,76.17406875]
[1728397049651,19.63284422,143.28,143.18,76.17406875]
[1728397049850,6.9798,143.27,143.18,76.17406875]
[1728397050146,26.79838854,143.28,143.2,6.9831]
[1728397050470,19.81868854,143.28,143.21,6.9826]
[1728397050661,19.81868854,143.28,143.2,6.9828]
[1728397050850,6.9809,143.25,143.18,17.4595]
[1728397051046,6.9809,143.25,143.19,6.9836]
[1728397051253,6.9818,143.23,143.16,6.9847]
[1728397051553,20.0,143.26,143.15,93.64246875]
[1728397051750,20.0,143.26,143.18,58.71456875]
[1728397051751,12.53970313,143.25,143.18,58.71456875]
[1728397051945,12.53970313,143.25,143.2,24.4401]
[1728397052266,19.52050313,143.25,143.2,17.4574]
[1728397052464,12.53970313,143.25,143.16,17.4621]
[1728397052664,12.53970313,143.25,143.18,6.9838]
[1728397052665,6.9812,143.24,143.18,6.9838]
[1728397052873,19.52050313,143.25,143.16,17.4621]
[1728397053074,12.53970313,143.25,143.2,6.9832]
[1728397053368,6.9818,143.23,143.17,6.9846]
[1728397053571,6.9823,143.22,143.16,6.9851]
[1728397053773,6.9833,143.2,143.09,35.8016165]
[1728397053960,19.53700893,143.2,143.11,17.4681]
[1728397054156,7.10929,143.19,143.11,17.4681]
[1728397054470,12.55370893,143.2,143.15,6.9856]
[1728397054777,12.55370893,143.2,143.14,17.4651]
[1728397055263,12.55370893,143.2,143.18,6.9841]
[1728397055659,12.55370893,143.2,143.17,17.4615]
[1728397055976,12.55370893,143.2,143.15,6.9852]
[1728397056278,11.85553117,143.2,143.16,17.4628]
[1728397056774,11.85553117,143.2,143.13,58.71456875]
[1728397056956,11.85553117,143.2,143.15,6.9856]
[1728397057278,11.85553117,143.2,143.16,6.9851]
[1728397057482,11.85553117,143.2,143.17,6.9845]
[1728397057659,11.85553117,143.2,143.17,17.4616]
[1728397057859,1.20780252,143.23,143.18,6.9839]
[1728397058178,1.20780252,143.23,143.19,6.9836]
[1728397058553,1.20780252,143.23,143.18,6.9841]
[1728397058754,1.20780252,143.23,143.17,24.4462]
[1728397059060,1.20780252,143.23,143.14,58.71456875]
[1728397059260,8.18960252,143.23,143.18,6.9841]
[1728397059665,7.23318,143.22,143.15,17.4631]
[1728397059875,8.18960252,143.23,143.17,6.9842]
[1728397060060,1.20780252,143.23,143.18,6.9841]
[1728397060374,1.20780252,143.23,143.17,93.63696875]
[1728397060559,1.20780252,143.23,143.2,17.4576]
[1728397060755,1.20780252,143.23,143.14,17.4651]
[1728397060956,1.20780252,143.23,143.09,0.8597165]
[1728397061157,6.9837,143.19,143.14,6.986]
[1728397061382,20.0,143.2,143.1,58.71456875]
[1728397061571,6.9837,143.19,143.14,24.4514]
[1728397061879,6.9846,143.18,143.13,6.9866]
[1728397062175,12.4558282,143.21,143.17,6.9846]
[1728397062472,0.12549,143.2,143.12,58.71456875]
[1728397062681,6.9833,143.2,143.15,6.9856]
[1728397063078,6.9844,143.18,143.13,24.4526]
[1728397063263,0.25098,143.2,143.13,17.4664]
[1728397063485,0.12549,143.2,143.13,17.4664]
[1728397063791,0.12549,143.2,143.15,6.9856]
[1728397063981,6.9832,143.2,143.15,6.9856]
[1728397064178,6.9832,143.2,143.13,17.4664]
[1728397064179,12.4558282,143.21,143.13,17.4664]
[1728397064384,12.4558282,143.21,143.09,0.8597165]
[1728397064385,12.4558282,143.21,143.15,17.4629]
[1728397064590,12.4558282,143.21,143.19,6.9835]
[1728397064897,1.20780252,143.23,143.19,6.9835]
[1728397065200,8.18970252,143.23,143.18,6.9841]
[1728397065574,1.20780252,143.23,143.18,6.9841]
[1728397065792,6.9823,143.22,143.18,6.9841]
[1728397066298,1.20780252,143.23,143.2,6.9831]
[1728397066599,6.9808,143.25,143.2,6.9831]
[1728397066800,13.58219868,143.26,143.19,17.4585]
[1728397067109,6.9812,143.25,143.19,24.4421]
[1728397067399,6.9812,143.25,143.19,17.4585]
[1728397067600,6.9812,143.25,143.2,6.9832]
[1728397067987,6.9814,143.24,143.2,6.9832]
[1728397068185,6.9814,143.24,143.19,24.4421]
[1728397068390,1.20695043,143.26,143.19,17.4585]
[1728397068699,6.9813,143.24,143.19,24.4421]
[1728397069998,1.20695043,143.26,143.19,17.4585]
[1728397070302,6.9813,143.24,143.19,24.4419]
[1728397070503,8.18725043,143.26,143.21,6.9827]
[1728397070796,1.20695043,143.26,143.17,58.71456875]
[1728397070981,6.9817,143.23,143.19,6.9836]
[1728397071187,6.9817,143.23,143.18,6.9841]
[1728397071498,6.9813,143.24,143.2,6.9832]
[1728397071702,6.9819,143.23,143.18,24.4438]
[1728397071883,6.9814,143.24,143.19,6.9836]
[1728397072083,13.71153488,143.26,143.19,6.9836]
[1728397072291,6.9817,143.23,143.19,6.9836]
[1728397072892,13.71153488,143.26,143.18,53.55387051]
[1728397073103,6.9813,143.24,143.2,6.9832]
[1728397073399,6.9813,143.24,143.18,53.55387051]
[1728397073778,13.71153488,143.26,143.2,17.4575]
[1728397074006,12.50458445,143.26,143.21,36.09407051]
[1728397074303,6.9811,143.25,143.21,36.09407051]
[1728397074602,6.9815,143.24,143.21,36.09407051]
[1728397074801,25.8119182,143.3,143.21,36.09407051]
[1728397075002,6.9818,143.23,143.2,17.4575]
[1728397075311,6.9819,143.23,143.18,36.09407051]
[1728397075675,17.4513,143.26,143.18,36.09407051]
[1728397075905,17.4513,143.26,143.18,43.07807051]
[1728397076082,6.9828,143.21,143.18,36.09407051]
[1728397076704,6.9823,143.22,143.18,36.09407051]
[1728397076892,6.9823,143.22,143.19,1.39666584]
[1728397077595,6.9823,143.22,143.18,36.09407051]
[1728397077799,6.9823,143.22,143.18,43.07807051]
[1728397078482,6.9818,143.23,143.19,8.38016994]
[1728397078809,6.9824,143.22,143.18,43.07817051]
[1728397079300,6.9828,143.21,143.18,36.09407051]
[1728397079502,6.9822,143.23,143.19,1.3966047]
[1728397080794,6.9838,143.19,143.15,15.6446]
[1728397080984,24.027864,143.23,143.14,17.4644]
[1728397081192,17.456,143.22,143.14,17.4644]
[1728397081391,6.9847,143.17,143.14,17.4644]
[1728397081585,6.9847,143.17,143.13,43.08067051]
[1728397082004,6.9847,143.17,143.13,60.54687051]
[1728397082314,6.9838,143.19,143.15,6.9855]
[1728397082499,17.456,143.22,143.15,6.9855]
[1728397082686,6.9846,143.18,143.13,60.54667051]
[1728397082891,17.4583,143.2,143.13,53.56037051]
[1728397083204,6.9837,143.19,143.15,6.9856]
[1728397083508,70.0,143.31,143.15,6.9856]
[1728397083509,17.4516,143.26,143.16,37.49086136]
[1728397083697,17.4516,143.26,143.16,36.09407051]
[1728397083900,6.9821,143.23,143.19,17.459]
[1728397084215,6.9821,143.23,143.18,6.984]
[1728397084216,6.9842,143.18,143.15,36.09407051]
[1728397084388,17.4592,143.2,143.09,36.95378701]
[1728397084582,6.9861,143.14,143.1,22.497]
[1728397085115,6.6512,143.2,143.09,0.8597165]
[1728397085414,6.9881,143.1,143.09,0.8597165]
[1728397085596,51.015964,143.1,143.09,0.8597165]
[1728397086210,6.9881,143.1,143.09,0.8597165]
[1728397086400,31.015964,143.1,143.09,0.8597165]
[1728397086590,51.015964,143.1,143.09,0.8597165]
[1728397086919,6.9876,143.11,143.09,0.8597165]
[1728397087413,13.0968455,143.13,143.09,0.8597165]
[1728397087582,6.9878,143.11,143.09,0.8597165]
[1728397087789,13.0968455,143.13,143.09,0.8597165]
[1728397087790,20.0839455,143.13,143.09,0.8597165]
[1728397088005,13.0968455,143.13,143.09,0.8597165]
[1728397088311,12.58280625,143.18,143.11,6.9876]
[1728397088497,6.9856,143.15,143.1,43.08207051]
[1728397088700,6.9852,143.16,143.1,36.09407051]
[1728397089012,17.463,143.16,143.09,0.8597165]
[1728397089395,47.50460625,143.18,143.09,0.8597165]
[1728397089595,6.9881,143.1,143.09,0.8597165]
[1728397090000,7.11359,143.1,143.09,0.8597165]
[1728397090519,51.015964,143.1,143.09,0.8597165]
[1728397090812,6.9881,143.1,143.09,0.8597165]
[1728397091310,6.987,143.13,143.09,0.8597165]
[1728397092000,20.0,143.15,143.09,0.8597165]
[1728397092210,6.9862,143.14,143.09,7.8482165]
[1728397092397,12.56562154,143.16,143.09,0.8597165]
[1728397092595,12.56562154,143.16,143.13,6.9862]
[1728397092798,12.56562154,143.16,143.11,17.4683]
[1728397093017,6.9858,143.15,143.11,17.4683]
[1728397093219,12.56562154,143.16,143.11,24.4558]
[1728397093412,7.15063034,143.21,143.11,24.4558]
[1728397093594,13.00045369,143.2,143.11,17.4683]
[1728397093917,6.9861,143.14,143.09,7.8482165]
[1728397094214,6.9861,143.14,143.09,0.8597165]
[1728397094215,6.9862,143.14,143.09,0.8597165]
[1728397094415,12.57023606,143.18,143.13,6.9864]
[1728397094615,1.20658282,143.16,143.13,6.9864]
[1728397094799,19.55453606,143.18,143.13,6.9864]
[1728397095000,12.57023606,143.18,143.12,18.86416604]
[1728397095204,12.57023606,143.18,143.14,53.55867051]
[1728397095402,12.57023606,143.18,143.15,1.39689264]
[1728397095611,12.57023606,143.18,143.14,53.55867051]
[1728397095791,12.57023606,143.18,143.15,6.9852]
[1728397096121,12.57023606,143.18,143.14,53.55867051]
[1728397096311,12.57023606,143.18,143.17,6.9847]
[1728397096801,12.57023606,143.18,143.16,6.985]
[1728397096994,12.57023606,143.18,143.15,17.4635]
[1728397096995,12.57023606,143.18,143.15,24.449]
[1728397097191,6.9828,143.21,143.16,6.9847]
[1728397097394,13.81232443,143.24,143.15,24.4491]
[1728397097622,6.9827,143.21,143.16,6.9851]
[1728397097807,6.9827,143.21,143.17,6.9845]
[1728397098003,6.9822,143.22,143.18,6.984]
[1728397098320,6.9823,143.22,143.17,24.4455]
[1728397098525,13.81232443,143.24,143.14,36.09407051]
[1728397098704,6.9852,143.16,143.1,15.4171]
[1728397098905,6.9847,143.17,143.13,6.9865]
[1728397099225,32.71547045,143.2,143.13,6.9865]
[1728397099429,6.985,143.17,143.11,24.456]
[1728397099723,12.46610934,143.19,143.12,6.9867]
[1728397100310,12.46610934,143.19,143.11,17.4689]
[1728397100311,29.92600934,143.19,143.11,17.4689]
[1728397100624,24.027864,143.18,143.1,6.9878]
[1728397100802,6.9857,143.15,143.09,0.8597165]
[1728397101001,23.902374,143.18,143.11,6.9875]
[1728397101209,6.9853,143.16,143.12,6.9869]
[1728397101419,6.985,143.17,143.12,6.9869]
[1728397101608,6.9854,143.16,143.11,6.9874]
[1728397101808,6.9866,143.14,143.1,17.4698]
[1728397102013,12.46610934,143.19,143.12,17.4671]
[1728397102201,19.44990934,143.19,143.12,36.09407051]
[1728397102402,6.9843,143.18,143.14,24.4509]
[1728397102617,6.9857,143.15,143.11,24.4557]
[1728397102818,12.46610934,143.19,143.11,24.4557]
[1728397103220,12.46610934,143.19,143.11,17.4683]
[1728397103524,6.9847,143.17,143.13,6.9862]
[1728397103729,12.46610934,143.19,143.15,6.9852]
[1728397104301,12.46610934,143.19,143.14,36.09407051]
[1728397104614,12.46610934,143.19,143.16,6.9851]
[1728397104820,6.9853,143.16,143.12,24.4544]
[1728397105133,6.9862,143.14,143.1,6.9881]
[1728397105426,6.986,143.15,143.1,6.9881]
[1728397105624,6.9862,143.14,143.09,18.3307165]
[1728397105803,24.027864,143.16,143.09,0.8597165]
[1728397106003,6.9862,143.14,143.09,7.8478165]
[1728397106231,6.9867,143.13,143.09,7.8478165]
[1728397106432,6.9862,143.14,143.1,6.9879]
[1728397106800,12.68602263,143.15,143.13,6.9865]
[1728397107019,6.9848,143.17,143.13,6.9865]
[1728397107238,12.75686981,143.19,143.14,36.09407051]
[1728397107405,12.75686981,143.19,143.16,6.9851]
[1728397107611,17.4552,143.23,143.16,6.9851]
[1728397107612,24.60041284,143.23,143.16,6.9851]
[1728397107806,6.9831,143.21,143.16,6.9851]
[1728397108122,6.9831,143.21,143.09,0.8597165]
[1728397108123,17.4583,143.2,143.1,17.4696]
[1728397108323,6.9863,143.14,143.09,36.95378701]
[1728397108527,6.9858,143.15,143.1,6.9877]
[1728397109235,6.9863,143.14,143.1,6.9877]
[1728397109434,6.9874,143.12,143.09,0.8597165]
[1728397110123,17.4635,143.16,143.09,0.8597165]
[1728397110503,6.9872,143.12,143.09,0.8597165]
[1728397111433,12.31149009,143.17,143.09,36.95378701]
[1728397111809,6.9853,143.16,143.11,6.9875]
[1728397112430,19.29619009,143.17,143.12,37.49131685]
[1728397112613,12.31149009,143.17,143.14,6.986]
[1728397113432,12.31149009,143.17,143.16,6.9851]
[1728397113632,6.9828,143.21,143.15,53.55767051]
[1728397113836,6.9828,143.21,143.17,6.9846]
[1728397114209,6.9828,143.21,143.15,53.55767051]
[1728397114534,6.9833,143.2,143.16,6.9847]
[1728397115429,6.9828,143.21,143.16,6.9847]
[1728397115926,6.9833,143.2,143.16,6.9847]
[1728397116133,6.9828,143.21,143.16,6.9847]
[1728397116525,6.9828,143.21,143.17,6.9846]
[1728397117209,6.9837,143.19,143.15,60.54327051]
[1728397117406,6.9828,143.21,143.17,6.9844]
[1728397117610,20.53723808,143.22,143.17,6.9844]
[1728397118034,6.9828,143.21,143.17,6.9844]
[1728397118613,12.34861773,143.22,143.18,6.984]
[1728397119123,12.34861773,143.22,143.19,6.9834]
[1728397120434,12.34861773,143.22,143.18,36.09407051]
[1728397120634,12.34861773,143.22,143.21,6.9827]
[1728397120835,8.18709893,143.25,143.21,6.9827]
[1728397121131,6.9814,143.24,143.19,24.4424]
[1728397122047,6.983,143.21,143.17,13.2615]
[1728397122415,6.9824,143.22,143.18,6.9841]
[1728397122734,6.9821,143.23,143.19,6.9836]
[1728397122939,6.9836,143.2,143.16,6.985]
[1728397123329,6.9836,143.2,143.14,51.58227051]
[1728397123330,6.9822,143.22,143.18,6.984]
[1728397123536,6.9819,143.23,143.19,6.9837]
[1728397123733,13.50564038,143.26,143.19,17.4588]
[1728397124138,6.9809,143.25,143.21,6.9826]
[1728397124330,20.48604038,143.26,143.22,6.9822]
[1728397124652,12.29979728,143.26,143.23,6.9816]
[1728397124850,6.9799,143.27,143.22,6.982]
[1728397125033,6.9805,143.26,143.22,6.982]
[1728397125541,6.9792,143.29,143.24,6.9812]
[1728397125856,6.9794,143.28,143.24,6.9812]
[1728397126151,20.6460839,143.3,143.23,53.54797051]
[1728397126342,20.6460839,143.3,143.26,36.09407051]
[1728397126343,19.44075233,143.3,143.26,36.09407051]
[1728397126542,6.3174,143.38,143.27,18.84468734]
[1728397126543,6.9769,143.33,143.27,18.84468734]
[1728397126856,6.9764,143.34,143.29,6.9787]
[1728397127159,12.37013294,143.38,143.32,53.53737051]
[1728397127335,7.160764,143.37,143.33,6.9768]
[1728397127533,6.974,143.39,143.33,6.9768]
[1728397129732,6.9735,143.4,143.35,43.06987051]
[1728397130344,6.9744,143.38,143.33,6.9768]
[1728397131153,1.20424632,143.41,143.32,53.53737051]
[1728397131355,1.20424632,143.41,143.35,6.9757]
[1728397131658,6.9744,143.38,143.33,6.9768]
[1728397132147,1.20424632,143.41,143.32,53.53737051]
[1728397132346,6.974,143.39,143.35,36.09407051]
[1728397132755,6.9738,143.4,143.35,36.09407051]
[1728397133054,6.9738,143.4,143.36,6.9754]
[1728397133252,8.1764178,143.42,143.37,6.9749]
[1728397133555,29.53660563,143.46,143.37,6.9749]
[1728397133754,1.20379379,143.44,143.37,6.9749]
[1728397134049,1.20379379,143.44,143.38,1.39474729]
[1728397134264,1.20379379,143.44,143.37,6.9749]
[1728397134952,1.20379379,143.44,143.35,36.09407051]
[1728397135452,0.12549,143.43,143.35,36.09407051]
[1728397135641,0.12549,143.43,143.35,43.06987051]
[1728397135953,23.902374,143.43,143.35,43.06987051]
[1728397136547,1.20379379,143.44,143.36,6.9754]
[1728397136755,1.20379379,143.44,143.35,36.09407051]
[1728397137057,6.9726,143.42,143.37,6.9749]
[1728397138150,1.20379379,143.44,143.39,6.9739]
[1728397138454,6.973,143.41,143.36,6.9753]
[1728397138665,6.9743,143.39,143.35,53.53307051]
[1728397138837,18.63309379,143.44,143.35,60.50857051]
[1728397139040,17.4318,143.42,143.35,36.09407051]
[1728397139555,6.974,143.39,143.35,43.06987051]
[1728397140055,17.4318,143.42,143.34,24.4165]
[1728397140056,6.9746,143.38,143.34,24.4165]
[1728397140363,6.9741,143.39,143.34,17.4403]
[1728397140734,17.4341,143.4,143.31,39.8147]
[1728397140934,17.4341,143.4,143.22,36.09407051]
[1728397140935,24.027864,143.41,143.29,43.07287051]
[1728397141159,24.027864,143.41,143.28,17.4475]
[1728397141160,23.776884,143.37,143.28,17.4475]
[1728397141364,6.9764,143.34,143.3,6.9781]
[1728397141872,0.12549,143.41,143.28,17.4475]
[1728397141873,6.9774,143.32,143.28,17.4475]
[1728397143164,6.9758,143.36,143.3,17.4455]
[1728397143341,6.976,143.35,143.31,6.9777]
[1728397143542,6.9755,143.36,143.32,6.9773]
[1728397143756,12.23485311,143.38,143.33,6.9769]
[1728397144062,6.9748,143.38,143.34,1.39510234]
[1728397144262,7.17215738,143.41,143.35,8.37100234]
[1728397144263,6.974,143.39,143.35,8.37100234]
[1728397144465,6.974,143.39,143.35,43.06997051]
[1728397144640,6.974,143.39,143.29,70.98817051]
[1728397144641,6.9764,143.34,143.3,6.9782]
[1728397144837,7.17436055,143.42,143.29,36.09407051]
[1728397145043,6.9792,143.29,143.27,15.0972]
[1728397145246,6.9795,143.28,143.22,58.14917051]
[1728397145446,6.9795,143.28,143.23,6.9816]
[1728397145652,24.027864,143.32,143.22,33.2077]
[1728397145854,6.9808,143.25,143.22,17.4552]
[1728397146161,6.9804,143.26,143.22,17.4552]
[1728397146638,6.9804,143.26,143.22,24.4373]
[1728397146834,6.9804,143.26,143.22,17.4552]
[1728397147035,17.4463,143.3,143.21,36.09407051]
[1728397147262,6.1987,143.32,143.21,53.55037051]
[1728397147263,6.9797,143.28,143.21,53.55037051]
[1728397147468,12.47459769,143.31,143.23,24.4348]
[1728397147649,6.9793,143.28,143.23,24.4348]
[1728397147961,24.027864,143.28,143.18,6.3026]
[1728397148273,12.36056567,143.29,143.22,6.982]
[1728397148561,6.98,143.27,143.22,6.982]
[1728397148753,12.36056567,143.29,143.22,6.982]
[1728397149060,12.36056567,143.29,143.25,6.9807]
[1728397149238,12.36056567,143.29,143.27,6.9798]
[1728397149439,6.9765,143.34,143.29,6.9786]
[1728397149644,12.46433559,143.35,143.28,17.4479]
[1728397149945,19.44023559,143.35,143.3,6.9778]
[1728397150149,6.0987,143.4,143.31,36.09407051]
[1728397150372,6.975,143.37,143.31,36.09407051]
[1728397150661,87.68152153,143.42,143.34,6.9763]
[1728397150662,6.9745,143.38,143.34,6.9763]
[1728397150869,6.973,143.41,143.36,6.9752]
[1728397151162,12.39853652,143.43,143.34,53.53447051]
[1728397151357,6.973,143.41,143.36,6.9753]
[1728397151558,6.9755,143.36,143.31,60.51577051]
[1728397151750,6.9743,143.39,143.31,36.09407051]
[1728397151951,6.9735,143.4,143.35,6.9758]
[1728397152265,12.39853652,143.43,143.35,17.439]
[1728397152472,8.17539379,143.44,143.39,6.9739]
[1728397152762,1.20379379,143.44,143.39,6.9739]
[1728397152950,6.9716,143.44,143.39,6.9739]
[1728397153340,1.20421855,143.45,143.37,53.53067051]
[1728397153538,6.9729,143.42,143.37,53.53067051]
[1728397153742,1.20421855,143.45,143.38,1.39461694]
[1728397153950,1.20421855,143.45,143.37,53.53067051]
[1728397154148,6.972,143.43,143.38,6.974]
[1728397154347,1.20421855,143.45,143.4,36.09407051]
[1728397154560,6.9696,143.48,143.42,6.9723]
[1728397154751,14.13248756,143.48,143.43,8.3658516]
[1728397155065,23.8237,143.53,143.46,6.9705]
[1728397155066,6.9686,143.51,143.46,6.9705]
[1728397155275,1.20373769,143.52,143.46,6.9705]
[1728397155472,1.20373769,143.52,143.45,6.9709]
[1728397155768,6.9685,143.51,143.46,6.9704]
[1728397156277,6.9682,143.51,143.46,6.9704]
[1728397157978,23.776884,143.52,143.42,58.42890137]
[1728397158150,6.9711,143.45,143.41,17.4321]
[1728397158354,0.12549,143.51,143.39,15.1637]
[1728397158355,20.12549,143.51,143.39,15.1637]
[1728397158546,17.4248,143.48,143.39,15.1637]
[1728397158750,0.12549,143.5,143.4,17.4329]
[1728397159076,6.9697,143.48,143.44,6.9714]
[1728397159247,6.969,143.5,143.44,6.9714]
[1728397159757,12.02263075,143.52,143.44,17.4279]
[1728397160157,6.9682,143.51,143.47,24.3948]
[1728397160359,12.02263075,143.52,143.39,50.033]
[1728397160360,6.9692,143.49,143.44,24.4]
[1728397160673,6.9691,143.49,143.44,6.9715]
[1728397160971,6.9696,143.48,143.43,24.4012]
[1728397161172,6.9691,143.49,143.44,6.9713]
[1728397161357,6.9691,143.49,143.45,6.971]
[1728397161564,29.44283075,143.52,143.45,6.971]
[1728397161565,6.9686,143.5,143.45,6.971]
[1728397161750,6.9686,143.5,143.46,6.9705]
[1728397161958,6.9686,143.5,143.43,17.4293]
[1728397162151,6.9682,143.51,143.47,6.9699]
[1728397162357,6.9682,143.51,143.45,75.85540137]
[1728397162659,6.9682,143.51,143.45,82.82600137]
[1728397163352,6.9686,143.5,143.46,6.9704]
[1728397163753,6.9677,143.52,143.47,6.9697]
[1728397164555,1.20362248,143.53,143.47,17.4243]
[1728397164762,1.20362248,143.53,143.5,6.9685]
[1728397164960,6.9668,143.54,143.5,6.9685]
[1728397165158,8.16954056,143.55,143.5,6.9685]
[1728397165552,6.9662,143.55,143.5,6.9685]
[1728397166081,6.9657,143.56,143.51,6.9679]
[1728397166250,6.9657,143.56,143.52,1.3933155]
[1728397166575,12.50124338,143.57,143.48,65.39830137]
[1728397166754,12.50124338,143.57,143.48,58.42890137]
[1728397166959,12.50124338,143.57,143.51,6.9677]
[1728397167158,12.50124338,143.57,143.49,17.4222]
[1728397167366,6.9677,143.52,143.48,6.9695]
[1728397167565,29.91514338,143.57,143.48,6.9695]
[1728397167566,6.9676,143.53,143.48,6.9695]
[1728397167780,41.318374,143.55,143.46,17.4258]
[1728397168080,6.9685,143.51,143.47,6.97]
[1728397168249,6.9685,143.51,143.46,24.3962]
[1728397168671,6.9686,143.5,143.46,24.3962]
[1728397168855,41.318374,143.55,143.46,24.3962]
[1728397169055,6.9682,143.51,143.46,24.3962]
[1728397170776,6.9696,143.48,143.43,24.401]
[1728397170956,6.9696,143.48,143.44,6.9714]
[1728397171162,6.9691,143.49,143.44,6.9714]
[1728397171460,6.9691,143.49,143.44,6.9711]
[1728397171658,6.9691,143.49,143.43,17.4294]
[1728397171860,6.9691,143.49,143.45,6.971]
[1728397172182,6.9683,143.51,143.46,6.9702]
[1728397172781,6.9686,143.5,143.45,24.3979]
[1728397173083,6.9685,143.51,143.46,6.9703]
[1728397173280,6.9685,143.51,143.47,6.97]
[1728397173486,23.776884,143.55,143.47,6.97]
[1728397173658,6.9685,143.51,143.46,6.9704]
[1728397173959,6.9685,143.51,143.45,17.427]
[1728397174278,6.9678,143.52,143.48,6.9696]
[1728397175277,6.9662,143.55,143.51,6.9681]
[1728397175777,12.26717644,143.56,143.52,1.39332769]
[1728397176074,12.26717644,143.56,143.49,6.969]
[1728397176265,12.26717644,143.56,143.48,73.87330137]
[1728397176266,12.26717644,143.56,143.48,91.29660137]
[1728397176470,12.26717644,143.56,143.48,15.4444]
[1728397176785,19.23297644,143.56,143.52,6.9676]
[1728397176957,6.9658,143.56,143.52,6.9676]
[1728397177163,6.9654,143.57,143.53,6.9671]
[1728397177358,6.9647,143.58,143.54,6.9665]
[1728397177765,8.02839229,143.59,143.52,17.4187]
[1728397177766,14.99269229,143.59,143.52,17.4187]
[1728397177979,8.02839229,143.59,143.55,6.9661]
[1728397178172,0.8597165,143.59,143.56,24.3793]
[1728397178863,0.8597165,143.59,143.57,6.9648]
[1728397179256,0.8597165,143.59,143.58,6.9647]
[1728397179480,0.8597165,143.59,143.58,8.35735825]
[1728397180183,0.8597165,143.59,143.58,6.9647]
[1728397181084,0.8597165,143.59,143.52,17.4187]
[1728397181279,6.9662,143.55,143.5,6.3382]
[1728397181469,6.9675,143.53,143.49,17.4219]
[1728397181663,6.9676,143.52,143.48,15.4444]
[1728397181863,6.9676,143.52,143.47,6.9697]
[1728397182279,6.9671,143.54,143.48,17.4234]
[1728397182474,6.9671,143.54,143.49,6.9689]